fUST/lending_fUST_20240814
["ID","MTS","AMOUNT","RATE_DAILY","PERIOD"]
[334793042,1723572655251,-500.0,0.00014794,2]
[334793043,1723572655260,-500.0,0.00014794,2]
[334793044,1723572655269,-500.0,0.00014794,2]
[334793045,1723572655278,-689.94,0.00014794,2]
[334793046,1723572655288,-1399.68,0.00014794,2]
[334793047,1723572655297,-500.0,0.00014794,2]
[334793048,1723572655306,-500.0,0.00014794,2]
[334793049,1723572655323,-975.7,0.00014794,2]
[334793050,1723572655332,-500.0,0.00014794,2]
[334793051,1723572655341,-500.0,0.00014794,2]
[334793052,1723572655350,-500.0,0.00014794,2]
[334793053,1723572655359,-500.0,0.00014794,2]
[334793054,1723572655369,-500.0,0.00014794,2]
[334793055,1723572655379,-500.0,0.00014794,2]
[334793056,1723572655388,-500.0,0.00014794,2]
[334793057,1723572655401,-500.0,0.00014794,2]
[334793058,1723572655411,-500.0,0.00014794,2]
[334793059,1723572655421,-500.0,0.00014794,2]
[334793060,1723572655430,-500.0,0.00014794,2]
[334793061,1723572655439,-500.0,0.00014794,2]
[334793062,1723572655449,-500.0,0.00014794,2]
[334793063,1723572655458,-601.1,0.00014794,2]
[334793064,1723572655468,-500.0,0.00014794,2]
[334793065,1723572655477,-670.23,0.00014794,2]
[334793066,1723572655488,-500.0,0.00014794,2]
[334793067,1723572655497,-500.0,0.00014794,2]
[334793068,1723572655507,-500.0,0.00014794,2]
[334793069,1723572655516,-500.0,0.00014794,2]
[334793070,1723572655526,-500.0,0.00014794,2]
[334793071,1723572655535,-500.0,0.00014794,2]
[334793072,1723572655544,-500.0,0.00014794,2]
[334793073,1723572655554,-536.88,0.00014794,2]
[334793074,1723572655563,-659.69,0.00014794,2]
[334793075,1723572655573,-1337.29,0.00014794,2]
[334793076,1723572655582,-2827.39,0.00014794,2]
[334793077,1723572655592,-500.0,0.00014794,2]
[334793078,1723572655601,-876.96,0.00014794,2]
[334793079,1723572655610,-3066.56,0.00014794,2]
[334793080,1723572655620,-500.0,0.00014794,2]
[334793081,1723572655629,-730.3,0.00014794,2]
[334793082,1723572655639,-772.82,0.00014794,2]
[334793083,1723572655648,-632.5,0.00014794,2]
[334793084,1723572655658,-500.0,0.00014794,2]
[334793085,1723572655668,-500.0,0.00014794,2]
[334793086,1723572655678,-1082.88,0.00014794,2]
[334793087,1723572655687,-500.0,0.00014794,2]
[334793088,1723572655696,-3032.99,0.00014794,2]
[334793089,1723572655706,-699.11,0.00014794,2]
[334793090,1723572655716,-638.92,0.00014794,2]
[334793091,1723572655725,-500.0,0.00014794,2]
[334793092,1723572655735,-500.0,0.00014794,2]
[334793093,1723572655744,-500.0,0.00014794,2]
[334793094,1723572655753,-500.0,0.00014794,2]
[334793095,1723572655763,-1145.15,0.00014794,2]
[334793096,1723572655772,-603.08,0.00014794,2]
[334793097,1723572655782,-1072.75,0.00014794,2]
[334793098,1723572655791,-741.49,0.00014794,2]
[334793099,1723572655801,-124.57061311,0.00014794,2]
[334793100,1723572655827,-503.04938689,0.00014794,2]
[334793101,1723572655837,-500.0,0.00014794,2]
[334793102,1723572655846,-1010.06,0.00014794,2]
[334793103,1723572655856,-103.29896906,0.00014794,2]
[334793104,1723572656279,-151.0,0.0001358,2]
[334793105,1723572656288,-151.0,0.000136,2]
[334793106,1723572656298,-479.94103094,0.00014794,2]
[334793107,1723572656309,-500.0,0.00014794,2]
[334793108,1723572656328,-788.91,0.00014794,2]
[334793109,1723572656338,-1108.44,0.00014794,2]
[334793110,1723572656348,-292.09,0.00014794,2]
[334793111,1723572656357,-531.3,0.00014794,2]
[334793112,1723572656367,-3900.26,0.00014794,2]
[334793113,1723572656376,-643.76,0.00014794,2]
[334793114,1723572656386,-500.0,0.00014794,2]
[334793115,1723572656395,-605.98,0.00014794,2]
[334793116,1723572656405,-749.21,0.00014794,2]
[334793117,1723572656415,-751.97,0.00014794,2]
[334793118,1723572656424,-723.37,0.00014794,2]
[334793119,1723572656433,-887.39,0.00014794,2]
[334793120,1723572656443,-500.0,0.00014794,2]
[334793121,1723572656453,-1436.16,0.00014794,2]
[334793122,1723572656462,-1119.21,0.00014794,2]
[334793123,1723572656471,-5487.78,0.00014794,2]
[334793124,1723572656481,-2207.14,0.00014794,2]
[334793125,1723572656491,-500.0,0.00014794,2]
[334793126,1723572656500,-5399.58,0.00014794,2]
[334793127,1723572656510,-1638.95,0.00014794,2]
[334793128,1723572656519,-585.03,0.00014794,2]
[334793129,1723572656528,-1000.03,0.00014794,2]
[334793130,1723572656537,-970.13,0.00014794,2]
[334793131,1723572656547,-606.78,0.00014794,2]
[334793132,1723572656556,-614.25,0.00014794,2]
[334793133,1723572656571,-914.25,0.00014794,2]
[334793134,1723572656583,-500.0,0.00014794,2]
[334793135,1723572656592,-835.99,0.00014794,2]
[334793136,1723572656602,-855.32,0.00014794,2]
[334793137,1723572656611,-753.42,0.00014794,2]
[334793138,1723572656620,-500.0,0.00014794,2]
[334793139,1723572656629,-500.0,0.00014794,2]
[334793140,1723572656638,-544.7,0.00014794,2]
[334793141,1723572656648,-565.43,0.00014794,2]
[334793142,1723572656657,-500.0,0.00014794,2]
[334793143,1723572656667,-783.28,0.00014794,2]
[334793144,1723572656676,-1513.2,0.00014794,2]
[334793145,1723572656686,-717.31,0.00014794,2]
[334793146,1723572656695,-963.45,0.00014794,2]
[334793147,1723572656705,-1433.28,0.00014794,2]
[334793148,1723572656714,-732.14,0.00014794,2]
[334793149,1723572656723,-155.78099207,0.000149,2]
[334793150,1723572656733,-600.0,0.00014917,2]
[334793151,1723572656743,-476.615587,0.00014967,2]
[334793152,1723572656753,-345.967995,0.00014967,2]
[334793153,1723572656764,-636.643757,0.00014967,2]
[334793154,1723572656774,-622.074062,0.00014967,2]
[334793155,1723572656784,-154.74467129,0.00014999,2]
[334793156,1723572656794,-813.29801715,0.00015,2]
[334793157,1723572656804,-336.59268156,0.00015,2]
[334793158,1723572656817,-952.87596009,0.00015,2]
[334793159,1723572656827,-7.69524591,0.00015,2]
[334793160,1723572656854,-242.75430898,0.00015,2]
[334793161,1723572656865,-400.0,0.00015,3]
[334793162,1723572656875,-347.49485813,0.00015,2]
[334793163,1723572656884,-2852.7407087,0.00015,2]
[334793164,1723572656894,-1110.12328868,0.00015,2]
[334793165,1723572656904,-1500.0,0.00015,2]
[334793166,1723572656917,-1500.0,0.00015,2]
[334793167,1723572656927,-1500.0,0.00015,2]
[334793168,1723572656936,-1468.23,0.00015,2]
[334793169,1723572656947,-153.0,0.00015014,2]
[334793170,1723572656960,-170.700823,0.00015029,2]
[334793171,1723572656970,-26754.0852844,0.0001503,2]
[334793172,1723572656981,-400.0,0.00015042,2]
[334793173,1723572656993,-400.0,0.00015042,2]
[334793174,1723572657009,-400.0,0.00015042,2]
[334793175,1723572657019,-558.11,0.00015068,2]
[334793176,1723572657030,-500.0,0.00015068,2]
[334793177,1723572657040,-710.78,0.00015068,2]
[334793178,1723572657052,-500.0,0.00015068,2]
[334793179,1723572657064,-500.0,0.00015068,2]
[334793180,1723572657073,-500.0,0.00015068,2]
[334793181,1723572657083,-500.0,0.00015068,2]
[334793182,1723572657092,-561.84,0.00015068,2]
[334793183,1723572657102,-500.0,0.00015068,2]
[334793184,1723572657111,-500.0,0.00015068,2]
[334793185,1723572657123,-500.0,0.00015068,2]
[334793186,1723572657133,-500.0,0.00015068,2]
[334793187,1723572657144,-500.0,0.00015068,2]
[334793188,1723572657155,-689.94,0.00015068,2]
[334793189,1723572657165,-1399.68,0.00015068,2]
[334793190,1723572657177,-500.0,0.00015068,2]
[334793191,1723572657189,-500.0,0.00015068,2]
[334793192,1723572657200,-975.7,0.00015068,2]
[334793193,1723572657212,-500.0,0.00015068,2]
[334793194,1723572657223,-500.0,0.00015068,2]
[334793195,1723572657235,-500.0,0.00015068,2]
[334793196,1723572657244,-500.0,0.00015068,2]
[334793197,1723572657255,-500.0,0.00015068,2]
[334793198,1723572657266,-500.0,0.00015068,2]
[334793199,1723572657277,-500.0,0.00015068,2]
[334793200,1723572657288,-500.0,0.00015068,2]
[334793201,1723572657299,-500.0,0.00015068,2]
[334793202,1723572657310,-514.44578464,0.00015068,2]
[334793203,1723572657322,-500.0,0.00015068,2]
[334793204,1723572657334,-500.0,0.00015068,2]
[334793205,1723572657346,-500.0,0.00015068,2]
[334793206,1723572657357,-601.1,0.00015068,2]
[334793207,1723572657369,-670.23,0.00015068,2]
[334793208,1723572657379,-500.0,0.00015068,2]
[334793209,1723572657392,-383.73659516,0.00015068,2]
[334793210,1723572657402,-500.0,0.00015068,2]
[334793211,1723572657412,-500.0,0.00015068,2]
[334793212,1723572657421,-416.44370677,0.00015068,2]
[334793213,1723572657431,-500.0,0.00015068,2]
[334793214,1723572657442,-500.0,0.00015068,2]
[334793215,1723572657452,-500.0,0.00015068,2]
[334793216,1723572657463,-536.88,0.00015068,2]
[334793217,1723572657473,-659.69,0.00015068,2]
[334793218,1723572657484,-2827.39,0.00015068,2]
[334793219,1723572657495,-876.96,0.00015068,2]
[334793220,1723572657506,-3066.56,0.00015068,2]
[334793221,1723572657517,-500.0,0.00015068,2]
[334793222,1723572657527,-730.3,0.00015068,2]
[334793223,1723572657539,-772.82,0.00015068,2]
[334793224,1723572657550,-632.5,0.00015068,2]
[334793225,1723572657559,-500.0,0.00015068,2]
[334793226,1723572657569,-500.0,0.00015068,2]
[334793227,1723572657579,-1082.88,0.00015068,2]
[334793228,1723572657590,-500.0,0.00015068,2]
[334793229,1723572657600,-3032.99,0.00015068,2]
[334793230,1723572657611,-699.11,0.00015068,2]
[334793231,1723572657621,-638.92,0.00015068,2]
[334793232,1723572657631,-500.0,0.00015068,2]
[334793233,1723572657642,-261.36699765,0.00015068,2]
[334793234,1723572657654,-500.0,0.00015068,2]
[334793235,1723572657665,-500.0,0.00015068,2]
[334793236,1723572657677,-1145.15,0.00015068,2]
[334793237,1723572657687,-603.08,0.00015068,2]
[334793238,1723572657698,-1072.75,0.00015068,2]
[334793239,1723572657708,-741.49,0.00015068,2]
[334793240,1723572657720,-627.62,0.00015068,2]
[334793241,1723572657730,-500.0,0.00015068,2]
[334793242,1723572657739,-1010.06,0.00015068,2]
[334793243,1723572657750,-583.24,0.00015068,2]
[334793244,1723572657759,-500.0,0.00015068,2]
[334793245,1723572657769,-788.91,0.00015068,2]
[334793246,1723572657779,-1108.44,0.00015068,2]
[334793247,1723572657788,-531.3,0.00015068,2]
[334793248,1723572657798,-3900.26,0.00015068,2]
[334793249,1723572657920,-643.76,0.00015068,2]
[334793250,1723572657932,-500.0,0.00015068,2]
[334793251,1723572657942,-605.98,0.00015068,2]
[334793252,1723572657951,-749.21,0.00015068,2]
[334793253,1723572657963,-751.97,0.00015068,2]
[334793254,1723572657972,-723.37,0.00015068,2]
[334793255,1723572657984,-887.39,0.00015068,2]
[334793256,1723572657996,-500.0,0.00015068,2]
[334793257,1723572658008,-1436.16,0.00015068,2]
[334793258,1723572658018,-1119.21,0.00015068,2]
[334793259,1723572658029,-5487.78,0.00015068,2]
[334793260,1723572658040,-2207.14,0.00015068,2]
[334793261,1723572658049,-462.23626478,0.00015068,2]
[334793262,1723572658061,-5399.58,0.00015068,2]
[334793263,1723572658072,-1638.95,0.00015068,2]
[334793264,1723572658082,-585.03,0.00015068,2]
[334793265,1723572658091,-1000.03,0.00015068,2]
[334793266,1723572658100,-970.13,0.00015068,2]
[334793267,1723572658109,-606.78,0.00015068,2]
[334793268,1723572658117,-614.25,0.00015068,2]
[334793269,1723572658127,-914.25,0.00015068,2]
[334793270,1723572658136,-500.0,0.00015068,2]
[334793271,1723572658145,-835.99,0.00015068,2]
[334793272,1723572658154,-855.32,0.00015068,2]
[334793273,1723572658163,-753.42,0.00015068,2]
[334793274,1723572658173,-238.59783836,0.00015068,2]
[334793275,1723572658183,-500.0,0.00015068,2]
[334793276,1723572658192,-600.0,0.00015068,2]
[334793277,1723572658202,-544.7,0.00015068,2]
[334793278,1723572658211,-565.43,0.00015068,2]
[334793279,1723572658221,-500.0,0.00015068,2]
[334793280,1723572658231,-783.28,0.00015068,2]
[334793281,1723572658240,-1513.2,0.00015068,2]
[334793282,1723572658250,-717.31,0.00015068,2]
[334793283,1723572658260,-963.45,0.00015068,2]
[334793284,1723572658269,-1433.28,0.00015068,2]
[334793285,1723572658278,-732.14,0.00015068,2]
[334793286,1723572658287,-476.615587,0.00015152,2]
[334793287,1723572658298,-345.967995,0.00015152,2]
[334793288,1723572658308,-636.643757,0.00015152,2]
[334793289,1723572658327,-622.074062,0.00015152,2]
[334793290,1723572658337,-465.00000001,0.00015164,2]
[334793291,1723572658347,-601.77894317,0.00015219,2]
[334793292,1723572658357,-170.700823,0.00015275,2]
[334793293,1723572658366,-476.615587,0.00015337,2]
[334793294,1723572658375,-345.967995,0.00015337,2]
[334793295,1723572658385,-636.643757,0.00015337,2]
[334793296,1723572658394,-622.074062,0.00015337,2]
[334793297,1723572658403,-558.11,0.00015342,2]
[334793298,1723572658413,-500.0,0.00015342,2]
[334793299,1723572658423,-710.78,0.00015342,2]
[334793300,1723572658434,-500.0,0.00015342,2]
[334793301,1723572658445,-601.30808406,0.00015342,2]
[334793302,1723572658454,-500.0,0.00015342,2]
[334793303,1723572658464,-500.0,0.00015342,2]
[334793304,1723572658474,-561.84,0.00015342,2]
[334793305,1723572658484,-500.0,0.00015342,2]
[334793306,1723572658493,-500.0,0.00015342,2]
[334793307,1723572658503,-500.0,0.00015342,2]
[334793308,1723572658514,-500.0,0.00015342,2]
[334793309,1723572658524,-500.0,0.00015342,2]
[334793310,1723572658533,-689.94,0.00015342,2]
[334793311,1723572658544,-1399.68,0.00015342,2]
[334793312,1723572658553,-500.0,0.00015342,2]
[334793313,1723572658570,-500.0,0.00015342,2]
[334793314,1723572658579,-975.7,0.00015342,2]
[334793315,1723572658588,-500.0,0.00015342,2]
[334793316,1723572658597,-500.0,0.00015342,2]
[334793317,1723572658607,-500.0,0.00015342,2]
[334793318,1723572658617,-500.0,0.00015342,2]
[334793319,1723572658626,-500.0,0.00015342,2]
[334793320,1723572658636,-500.0,0.00015342,2]
[334793321,1723572658646,-500.0,0.00015342,2]
[334793322,1723572658656,-500.0,0.00015342,2]
[334793323,1723572658666,-500.0,0.00015342,2]
[334793324,1723572658677,-500.0,0.00015342,2]
[334793325,1723572658687,-500.0,0.00015342,2]
[334793326,1723572658696,-500.0,0.00015342,2]
[334793327,1723572658707,-601.1,0.00015342,2]
[334793328,1723572658717,-416.78,0.00015342,2]
[334793329,1723572658726,-670.23,0.00015342,2]
[334793330,1723572658736,-623.35943106,0.00015342,2]
[334793331,1723572658746,-216.12818821,0.00015342,2]
[334793332,1723572658757,-500.0,0.00015342,2]
[334793333,1723572658767,-500.0,0.00015342,2]
[334793334,1723572658777,-500.0,0.00015342,2]
[334793335,1723572658786,-536.88,0.00015342,2]
[334793336,1723572658795,-659.69,0.00015342,2]
[334793337,1723572658804,-2827.39,0.00015342,2]
[334793338,1723572658817,-876.96,0.00015342,2]
[334793339,1723572658827,-3066.56,0.00015342,2]
[334793340,1723572658836,-500.0,0.00015342,2]
[334793341,1723572658846,-730.3,0.00015342,2]
[334793342,1723572658855,-772.82,0.00015342,2]
[334793343,1723572658865,-632.5,0.00015342,2]
[334793344,1723572658874,-500.0,0.00015342,2]
[334793345,1723572658884,-500.0,0.00015342,2]
[334793346,1723572658893,-1082.88,0.00015342,2]
[334793347,1723572658902,-500.0,0.00015342,2]
[334793348,1723572658913,-3032.99,0.00015342,2]
[334793349,1723572658924,-699.11,0.00015342,2]
[334793350,1723572658934,-638.92,0.00015342,2]
[334793351,1723572658943,-500.0,0.00015342,2]
[334793352,1723572658953,-500.0,0.00015342,2]
[334793353,1723572658962,-500.0,0.00015342,2]
[334793354,1723572658972,-1145.15,0.00015342,2]
[334793355,1723572658981,-603.08,0.00015342,2]
[334793356,1723572658992,-1072.75,0.00015342,2]
[334793357,1723572659002,-741.49,0.00015342,2]
[334793358,1723572659011,-627.62,0.00015342,2]
[334793359,1723572659021,-500.0,0.00015342,2]
[334793360,1723572659031,-1010.06,0.00015342,2]
[334793361,1723572659041,-583.24,0.00015342,2]
[334793362,1723572659051,-500.0,0.00015342,2]
[334793363,1723572659062,-788.91,0.00015342,2]
[334793364,1723572659072,-1108.44,0.00015342,2]
[334793365,1723572659082,-531.3,0.00015342,2]
[334793366,1723572659091,-3900.26,0.00015342,2]
[334793367,1723572659101,-643.76,0.00015342,2]
[334793368,1723572659111,-500.0,0.00015342,2]
[334793369,1723572659121,-605.98,0.00015342,2]
[334793370,1723572659133,-749.21,0.00015342,2]
[334793371,1723572659143,-751.97,0.00015342,2]
[334793372,1723572659153,-723.37,0.00015342,2]
[334793373,1723572659164,-887.39,0.00015342,2]
[334793374,1723572659173,-500.0,0.00015342,2]
[334793375,1723572659183,-1436.16,0.00015342,2]
[334793376,1723572659193,-1119.21,0.00015342,2]
[334793377,1723572659204,-5487.78,0.00015342,2]
[334793378,1723572659214,-2207.14,0.00015342,2]
[334793379,1723572659224,-5399.58,0.00015342,2]
[334793380,1723572659233,-1638.95,0.00015342,2]
[334793381,1723572659243,-585.03,0.00015342,2]
[334793382,1723572659254,-1000.03,0.00015342,2]
[334793383,1723572659265,-970.13,0.00015342,2]
[334793384,1723572659275,-606.78,0.00015342,2]
[334793385,1723572659285,-614.25,0.00015342,2]
[334793386,1723572659294,-914.25,0.00015342,2]
[334793387,1723572659304,-500.0,0.00015342,2]
[334793388,1723572659315,-835.99,0.00015342,2]
[334793389,1723572659325,-855.32,0.00015342,2]
[334793390,1723572659334,-753.42,0.00015342,2]
[334793391,1723572659344,-500.0,0.00015342,2]
[334793392,1723572659354,-544.7,0.00015342,2]
[334793393,1723572659363,-565.43,0.00015342,2]
[334793394,1723572659373,-500.0,0.00015342,2]
[334793395,1723572659383,-783.28,0.00015342,2]
[334793396,1723572659392,-1513.2,0.00015342,2]
[334793397,1723572659402,-717.31,0.00015342,2]
[334793398,1723572659411,-963.45,0.00015342,2]
[334793399,1723572659421,-1433.28,0.00015342,2]
[334793400,1723572659430,-732.14,0.00015342,2]
[334793401,1723572659439,-400.0,0.00015342,2]
[334793402,1723572659449,-400.0,0.00015342,2]
[334793403,1723572659458,-2323.04582633,0.00015428,2]
[334793404,1723572659468,-170.700823,0.00015521,2]
[334793405,1723572659476,-476.615587,0.00015521,2]
[334793406,1723572659485,-345.967995,0.00015521,2]
[334793407,1723572659494,-636.643757,0.00015521,2]
[334793408,1723572659503,-622.074062,0.00015521,2]
[334793409,1723572659514,-250.27759,0.00015535,2]
[334793410,1723572659523,-162.464818,0.00015535,2]
[334793411,1723572659533,-175.475527,0.00015535,2]
[334793412,1723572659542,-163.619916,0.00015535,2]
[334793413,1723572659552,-2892.174212,0.00015535,2]
[334793414,1723572659562,-3141.502388,0.00015535,2]
[334793415,1723572659572,-164.789859,0.00015535,2]
[334793416,1723572659581,-558.11,0.00015616,2]
[334793417,1723572659591,-500.0,0.00015616,2]
[334793418,1723572659601,-710.78,0.00015616,2]
[334793419,1723572659610,-500.0,0.00015616,2]
[334793420,1723572659620,-500.0,0.00015616,2]
[334793421,1723572659630,-500.0,0.00015616,2]
[334793422,1723572659639,-561.84,0.00015616,2]
[334793423,1723572659648,-500.0,0.00015616,2]
[334793424,1723572659657,-500.0,0.00015616,2]
[334793425,1723572659666,-500.0,0.00015616,2]
[334793426,1723572659676,-500.0,0.00015616,2]
[334793427,1723572659685,-500.0,0.00015616,2]
[334793428,1723572659695,-689.94,0.00015616,2]
[334793429,1723572659704,-1399.68,0.00015616,2]
[334793430,1723572659714,-500.0,0.00015616,2]
[334793431,1723572659724,-500.0,0.00015616,2]
[334793432,1723572659734,-975.7,0.00015616,2]
[334793433,1723572659743,-500.0,0.00015616,2]
[334793434,1723572659753,-500.0,0.00015616,2]
[334793435,1723572659763,-500.0,0.00015616,2]
[334793436,1723572659774,-500.0,0.00015616,2]
[334793437,1723572659784,-500.0,0.00015616,2]
[334793438,1723572659794,-500.0,0.00015616,2]
[334793439,1723572659803,-500.0,0.00015616,2]
[334793440,1723572659815,-500.0,0.00015616,2]
[334793441,1723572659825,-500.0,0.00015616,2]
[334793442,1723572659834,-500.0,0.00015616,2]
[334793443,1723572659844,-500.0,0.00015616,2]
[334793444,1723572659854,-500.0,0.00015616,2]
[334793445,1723572659864,-601.1,0.00015616,2]
[334793446,1723572659875,-670.23,0.00015616,2]
[334793447,1723572659885,-500.0,0.00015616,2]
[334793448,1723572659895,-500.0,0.00015616,2]
[334793449,1723572659904,-500.0,0.00015616,2]
[334793450,1723572659918,-536.88,0.00015616,2]
[334793451,1723572659928,-659.69,0.00015616,2]
[334793452,1723572659938,-2827.39,0.00015616,2]
[334793453,1723572659948,-876.96,0.00015616,2]
[334793454,1723572659958,-3066.56,0.00015616,2]
[334793455,1723572659967,-500.0,0.00015616,2]
[334793456,1723572659978,-730.3,0.00015616,2]
[334793457,1723572659987,-772.82,0.00015616,2]
[334793458,1723572660000,-632.5,0.00015616,2]
[334793459,1723572660009,-500.0,0.00015616,2]
[334793460,1723572660019,-500.0,0.00015616,2]
[334793461,1723572660029,-1082.88,0.00015616,2]
[334793462,1723572660039,-500.0,0.00015616,2]
[334793463,1723572660049,-3032.99,0.00015616,2]
[334793464,1723572660059,-699.11,0.00015616,2]
[334793465,1723572660072,-638.92,0.00015616,2]
[334793466,1723572660082,-500.0,0.00015616,2]
[334793467,1723572660091,-500.0,0.00015616,2]
[334793468,1723572660101,-500.0,0.00015616,2]
[334793469,1723572660111,-1145.15,0.00015616,2]
[334793470,1723572660120,-603.08,0.00015616,2]
[334793471,1723572660129,-1072.75,0.00015616,2]
[334793472,1723572660138,-741.49,0.00015616,2]
[334793473,1723572660148,-627.62,0.00015616,2]
[334793474,1723572660158,-500.0,0.00015616,2]
[334793475,1723572660167,-1010.06,0.00015616,2]
[334793476,1723572660177,-583.24,0.00015616,2]
[334793477,1723572660186,-500.0,0.00015616,2]
[334793478,1723572660199,-788.91,0.00015616,2]
[334793479,1723572660209,-1108.44,0.00015616,2]
[334793480,1723572660218,-531.3,0.00015616,2]
[334793481,1723572660227,-3900.26,0.00015616,2]
[334793482,1723572660236,-643.76,0.00015616,2]
[334793483,1723572660244,-500.0,0.00015616,2]
[334793484,1723572660253,-605.98,0.00015616,2]
[334793485,1723572660263,-749.21,0.00015616,2]
[334793486,1723572660273,-751.97,0.00015616,2]
[334793487,1723572660281,-723.37,0.00015616,2]
[334793488,1723572660290,-887.39,0.00015616,2]
[334793489,1723572660299,-500.0,0.00015616,2]
[334793490,1723572660308,-1436.16,0.00015616,2]
[334793491,1723572660324,-1119.21,0.00015616,2]
[334793492,1723572660337,-5487.78,0.00015616,2]
[334793493,1723572660348,-2207.14,0.00015616,2]
[334793494,1723572660357,-5399.58,0.00015616,2]
[334793495,1723572660367,-1638.95,0.00015616,2]
[334793496,1723572660376,-585.03,0.00015616,2]
[334793497,1723572660386,-1000.03,0.00015616,2]
[334793498,1723572660396,-970.13,0.00015616,2]
[334793499,1723572660405,-606.78,0.00015616,2]
[334793500,1723572660415,-614.25,0.00015616,2]
[334793501,1723572660424,-914.25,0.00015616,2]
[334793502,1723572660434,-500.0,0.00015616,2]
[334793503,1723572660444,-835.99,0.00015616,2]
[334793504,1723572660454,-855.32,0.00015616,2]
[334793505,1723572660464,-753.42,0.00015616,2]
[334793506,1723572660476,-500.0,0.00015616,2]
[334793507,1723572660486,-544.7,0.00015616,2]
[334793508,1723572660496,-565.43,0.00015616,2]
[334793509,1723572660506,-500.0,0.00015616,2]
[334793510,1723572660515,-783.28,0.00015616,2]
[334793511,1723572660525,-1513.2,0.00015616,2]
[334793512,1723572660534,-717.31,0.00015616,2]
[334793513,1723572660544,-963.45,0.00015616,2]
[334793514,1723572660553,-1433.28,0.00015616,2]
[334793515,1723572660565,-732.14,0.00015616,2]
[334793516,1723572660575,-2000.0,0.00015674,2]
[334793517,1723572660584,-2000.0,0.00015683,2]
[334793518,1723572660594,-2000.0,0.00015691,2]
[334793519,1723572660706,-153.0,0.00015699,2]
[334793520,1723572660716,-2000.0,0.000157,2]
[334793521,1723572660726,-55437.23569522,0.00015707,2]
[334793522,1723572660736,-1645.12915247,0.00015707,7]
[334793523,1723572660746,-9653.694874,0.00015708,2]
[334793524,1723572660755,-8839.32018814,0.00015708,2]
[334793525,1723572660766,-2126.93180055,0.00015708,2]
[334793526,1723572660776,-1718.59608902,0.00015708,2]
[334793527,1723572660785,-2165.02531007,0.00015708,2]
[334793528,1723572660795,-1164.18655458,0.00015708,2]
[334793529,1723572660804,-7009.73582418,0.00015708,2]
[334793530,1723572660820,-2711.07610904,0.00015708,2]
[334793531,1723572660832,-1993.92519037,0.00015708,2]
[334793532,1723572660842,-1500.0,0.00015708,2]
[334793533,1723572660851,-1765.51331177,0.00015708,2]
[334793534,1723572660861,-3091.13727691,0.00015708,2]
[334793535,1723572660871,-1612.50236141,0.00015708,2]
[334793536,1723572660879,-2280.94328091,0.00015708,3]
[334793537,1723572660888,-2141.62462175,0.00015708,2]
[334793538,1723572660898,-10060.64477002,0.00015708,2]
[334793539,1723572660907,-14255.47414227,0.00015708,2]
[334793540,1723572660920,-1644.95850561,0.00015708,2]
[334793541,1723572660929,-154.79103211,0.00015708,2]